bitfinex/quotes_BTCUSD_20250903
["timestamp","ask_amount","ask_price","bid_price","bid_amount"]
[1756861377073,1.13394877,111460.0,111450.0,0.00329045]
[1756861377271,1.13091877,111460.0,111450.0,0.00646045]
[1756861377533,1.13091877,111460.0,111450.0,0.00329045]
[1756861378335,1.13091877,111460.0,111450.0,0.00114045]
[1756861378540,1.13394877,111460.0,111450.0,0.00114045]
[1756861380280,1.13091877,111460.0,111450.0,0.00329045]
[1756861381274,1.13091877,111460.0,111450.0,0.00646045]
[1756861381940,1.13091877,111460.0,111450.0,0.00329045]
[1756861383822,0.02897761,111460.0,111450.0,0.5027029]
[1756861384040,0.02897761,111460.0,111450.0,0.99402269]
[1756861384257,0.002,111460.0,111450.0,1.14917868]
[1756861384655,0.002,111460.0,111450.0,1.80596847]
[1756861385133,0.002,111460.0,111450.0,1.88649405]
[1756861385355,0.18834079,111500.0,111480.0,0.17940342]
[1756861385571,0.18834079,111500.0,111490.0,0.46969979]
[1756861385801,0.54927961,111500.0,111490.0,0.47286979]
[1756861386007,0.18834079,111500.0,111490.0,0.47286979]
[1756861386236,0.52834079,111500.0,111490.0,0.49663979]
[1756861386878,0.52834079,111500.0,111490.0,0.49678024]
[1756861387354,0.52834079,111500.0,111490.0,0.02923045]
[1756861387575,0.85026058,111500.0,111490.0,0.15086045]
[1756861387795,0.85026058,111500.0,111490.0,0.00014045]
[1756861388005,0.85026058,111500.0,111490.0,0.00114045]
[1756861388212,0.85026058,111500.0,111490.0,0.00014045]
[1756861388645,0.85026058,111500.0,111490.0,0.00214045]
[1756861389271,0.85026058,111500.0,111490.0,0.00014045]
[1756861389480,0.85026058,111500.0,111490.0,0.00114045]
[1756861389914,1.00106058,111500.0,111490.0,0.00114045]
[1756861392441,1.43070518,111500.0,111490.0,0.00114045]
[1756861393718,1.11391539,111500.0,111490.0,0.00114045]
[1756861395163,1.11391539,111500.0,111490.0,0.00014045]
[1756861395376,0.6411956,111500.0,111490.0,0.32209024]
[1756861395590,0.52934079,111500.0,111490.0,0.47285024]
[1756861397365,0.52934079,111500.0,111490.0,0.15606045]
[1756861397575,0.84814058,111500.0,111490.0,0.00222045]
[1756861397764,0.85133058,111500.0,111490.0,0.15138045]
[1756861397912,0.84814058,111500.0,111490.0,0.15346045]
[1756861398126,0.84814058,111500.0,111490.0,0.15138045]
[1756861398333,0.85033058,111500.0,111490.0,0.15138045]
[1756861399159,0.85033058,111500.0,111490.0,0.15238045]
[1756861399691,0.84714058,111500.0,111490.0,0.15238045]
[1756861400747,0.84714058,111500.0,111490.0,0.15446045]
[1756861400979,0.53035079,111500.0,111490.0,0.15754045]
[1756861401156,0.52834079,111500.0,111490.0,0.47433024]
[1756861401579,0.52834079,111500.0,111490.0,0.15754045]
[1756861402040,0.52834079,111500.0,111490.0,0.42674045]
[1756861402272,0.18834079,111500.0,111490.0,0.42674045]
[1756861403737,0.19035079,111500.0,111490.0,0.42366045]
[1756861403951,0.19354079,111500.0,111490.0,0.42158045]
[1756861404162,0.19035079,111500.0,111490.0,0.42366045]
[1756861404999,0.19035079,111500.0,111490.0,0.42674045]
[1756861405964,0.18834079,111500.0,111490.0,0.42674045]
[1756861407819,0.18834079,111500.0,111490.0,0.84861798]
[1756861408630,0.18834079,111500.0,111490.0,0.42674045]
[1756861411670,0.17937219,111500.0,111490.0,0.84861798]
[1756861411904,0.17937219,111500.0,111490.0,1.11522626]
[1756861412139,0.18832537,111510.0,111490.0,0.84602626]
[1756861412369,0.18832537,111510.0,111500.0,0.42187753]
[1756861412583,0.18832537,111510.0,111500.0,0.42495753]
[1756861412809,0.18832537,111510.0,111500.0,0.42703753]
[1756861413254,0.18932537,111510.0,111500.0,0.42703753]
[1756861413505,0.001,111510.0,111500.0,0.72230571]
[1756861413768,0.001,111510.0,111500.0,0.99150571]
[1756861413985,0.001,111510.0,111500.0,0.74926368]
[1756861414433,0.001,111510.0,111500.0,1.05791329]
[1756861414655,0.18836612,111540.0,111520.0,0.17934002]
[1756861414883,0.18836612,111540.0,111530.0,0.63851753]
[1756861415112,0.17930787,111540.0,111530.0,0.93581746]
[1756861415351,0.17930787,111540.0,111530.0,0.96276893]
[1756861415803,0.17930787,111540.0,111530.0,0.81144893]
[1756861416025,0.17930787,111540.0,111530.0,0.96376893]
[1756861416265,4.681e-05,111540.0,111530.0,0.9458629]
[1756861416481,4.681e-05,111540.0,111530.0,0.9448629]
[1756861417108,0.17935468,111540.0,111530.0,0.9448629]
[1756861417632,0.18035468,111540.0,111530.0,0.9478629]
[1756861417860,0.00104681,111540.0,111530.0,0.52598537]
[1756861418074,0.00104681,111540.0,111530.0,0.9478629]
[1756861422474,0.00104681,111540.0,111530.0,0.98900646]
[1756861422874,0.00104681,111540.0,111530.0,1.70260646]
[1756861424703,0.00104681,111540.0,111530.0,1.55128646]
[1756861424920,0.00104681,111540.0,111530.0,1.70240646]
[1756861426114,0.00104681,111540.0,111530.0,1.70236646]
[1756861428662,0.18831747,111560.0,111540.0,0.86932655]
[1756861428870,0.18836426,111560.0,111550.0,0.151]
[1756861429110,0.19049426,111560.0,111550.0,0.41915319]
[1756861429342,0.19049426,111560.0,111550.0,0.84302072]
[1756861430273,0.00217679,111560.0,111550.0,1.02231251]
[1756861430476,0.18145251,111560.0,111550.0,1.02549251]
[1756861431350,0.18145251,111560.0,111550.0,1.02649251]
[1756861431592,4.679e-05,111560.0,111550.0,1.02649251]
[1756861432843,4.679e-05,111560.0,111550.0,0.60461498]
[1756861433047,4.679e-05,111560.0,111550.0,1.02649251]
[1756861434941,4.679e-05,111560.0,111550.0,0.87549251]
[1756861435161,0.17932251,111560.0,111550.0,1.02641251]
[1756861436745,0.17932251,111560.0,111550.0,0.87549251]
[1756861436969,0.17932251,111560.0,111550.0,1.02637251]
[1756861438623,4.679e-05,111560.0,111550.0,0.60449498]
[1756861438844,0.17932251,111560.0,111550.0,0.60449498]
[1756861439030,0.17932251,111560.0,111550.0,1.02637251]
[1756861439440,4.679e-05,111560.0,111550.0,1.02637251]
[1756861439608,4.679e-05,111560.0,111550.0,0.60449498]
[1756861440214,0.17932251,111560.0,111550.0,1.02637251]
[1756861440420,0.18444251,111560.0,111550.0,0.26915319]
[1756861440652,0.60632004,111560.0,111550.0,0.42023319]
[1756861441258,1.48105238,111560.0,111550.0,0.26915319]
[1756861441494,1.48105238,111560.0,111550.0,0.42023319]
[1756861441689,1.05917485,111560.0,111550.0,0.42023319]
[1756861442660,0.63729732,111560.0,111550.0,0.42023319]
[1756861443117,1.05917485,111560.0,111550.0,0.42023319]
[1756861444982,1.05917485,111560.0,111550.0,0.26915319]
[1756861445192,1.05917485,111560.0,111550.0,0.42031319]
[1756861446406,1.05917485,111560.0,111550.0,0.42027319]
[1756861446660,1.48105238,111560.0,111550.0,0.42027319]
[1756861446920,0.63729732,111560.0,111550.0,0.42027319]
[1756861447310,1.05917485,111560.0,111550.0,0.42027319]
[1756861448781,0.63729732,111560.0,111550.0,0.42027319]
[1756861448995,1.05917485,111560.0,111550.0,0.42027319]
[1756861450347,0.63729732,111560.0,111550.0,0.42027319]
[1756861450597,0.17932251,111560.0,111550.0,0.1571]
[1756861450815,0.17932251,111560.0,111550.0,0.15934114]
[1756861451959,0.18103803,111560.0,111550.0,0.15934114]
[1756861452428,0.17932251,111560.0,111550.0,0.33863293]
[1756861452655,0.17932251,111560.0,111550.0,0.33639179]
[1756861453306,4.679e-05,111560.0,111550.0,0.33639179]
[1756861453748,0.17932251,111560.0,111550.0,0.33639179]
[1756861454378,0.17932251,111560.0,111550.0,0.1571]
[1756861456469,0.60315004,111560.0,111550.0,0.00296]
[1756861456680,0.60315004,111560.0,111550.0,0.1575]
[1756861457088,0.17932251,111560.0,111550.0,0.1575]
[1756861458542,0.17932251,111560.0,111550.0,0.4267]
[1756861459419,0.17932251,111560.0,111550.0,0.60599179]
[1756861459661,4.679e-05,111560.0,111550.0,0.60599179]
[1756861460747,0.17932251,111560.0,111550.0,0.60599179]
[1756861462923,0.17932251,111560.0,111550.0,0.4267]
[1756861463336,0.17932251,111560.0,111550.0,0.42662]
[1756861463551,0.49735507,111560.0,111550.0,0.42662]
[1756861464638,0.49735507,111560.0,111550.0,0.27216]
[1756861464848,0.49735507,111560.0,111550.0,0.4236]
[1756861465045,0.49540507,111560.0,111550.0,0.42662]
[1756861465249,0.17932251,111560.0,111550.0,0.42662]
[1756861465452,0.49540507,111560.0,111550.0,0.42662]
[1756861465629,0.49735507,111560.0,111550.0,0.42662]
[1756861467046,0.49735507,111560.0,111550.0,0.4267]
[1756861469445,0.49735507,111560.0,111550.0,0.27518]
[1756861469679,0.49735507,111560.0,111550.0,0.42364]
[1756861470786,0.49735507,111560.0,111550.0,0.42666]
[1756861471609,0.17932251,111560.0,111550.0,0.42666]
[1756861471840,0.49540507,111560.0,111550.0,0.42666]
[1756861472050,0.49735507,111560.0,111550.0,0.48986]
[1756861472662,0.49540507,111560.0,111550.0,0.66915179]
[1756861474201,0.17932251,111560.0,111550.0,0.66915179]
[1756861475490,0.17932251,111560.0,111550.0,0.48986]
[1756861475713,0.49735507,111560.0,111550.0,0.48986]
[1756861475920,0.17932251,111560.0,111550.0,0.66915179]
[1756861476114,0.17932251,111560.0,111550.0,1.11355179]
[1756861480804,0.18145251,111560.0,111550.0,0.93426]
[1756861481017,0.17932251,111560.0,111550.0,0.93426]
[1756861481221,0.49540507,111560.0,111550.0,0.93426]
[1756861481781,0.17932251,111560.0,111550.0,1.11355179]
[1756861481990,0.49540507,111560.0,111550.0,1.11355179]
[1756861483297,4.679e-05,111560.0,111550.0,1.11355179]
[1756861485115,4.679e-05,111560.0,111550.0,1.42963435]
[1756861486069,0.17932251,111560.0,111550.0,1.42963435]
[1756861486478,4.679e-05,111560.0,111550.0,1.42963435]
[1756861486677,4.679e-05,111560.0,111550.0,1.54483034]
[1756861486877,4.679e-05,111560.0,111550.0,1.1473129]
[1756861487079,4.679e-05,111560.0,111550.0,0.83123034]
[1756861487347,6.79e-06,111560.0,111550.0,0.85817422]
[1756861487537,6.79e-06,111560.0,111550.0,0.9386998]
[1756861489290,6.79e-06,111560.0,111550.0,0.85817422]
[1756861490161,6.79e-06,111560.0,111550.0,0.9386998]
[1756861490365,6.79e-06,111560.0,111550.0,1.6522998]
[1756861491129,6.79e-06,111560.0,111550.0,1.57177422]
[1756861492379,6.79e-06,111560.0,111550.0,1.42029422]
[1756861492595,6.79e-06,111560.0,111550.0,1.57145422]
[1756861495555,6.79e-06,111560.0,111550.0,1.57137422]
[1756861496203,6.79e-06,111560.0,111550.0,0.85777422]
[1756861496395,0.50046507,111560.0,111550.0,0.18305987]
[1756861496601,0.50046507,111560.0,111550.0,0.33417987]
[1756861496811,0.50046507,111560.0,111550.0,0.30723599]
[1756861497013,0.18141251,111560.0,111550.0,0.30933599]
[1756861497706,0.18141251,111560.0,111550.0,0.48862778]
[1756861498137,0.18141251,111560.0,111550.0,0.49168778]
[1756861499855,0.18141251,111560.0,111550.0,0.31239599]
[1756861500079,0.18141251,111560.0,111550.0,0.30933599]
[1756861500294,0.18141251,111560.0,111550.0,0.30929599]
[1756861500509,0.81654763,111560.0,111550.0,0.21532]
[1756861500718,0.50046507,111560.0,111550.0,0.21532]
[1756861503119,0.18438251,111560.0,111550.0,0.21532]
[1756861503330,0.49749507,111560.0,111550.0,0.21532]
[1756861504192,0.50046507,111560.0,111550.0,0.21532]
[1756861505875,0.50046507,111560.0,111550.0,0.92892]
[1756861508356,1.245485,111560.0,111550.0,0.001]
[1756861508581,0.17880787,111540.0,111530.0,0.15112]
[1756861508802,0.17934002,111520.0,111510.0,0.008974]
[1756861509023,0.17935611,111510.0,111500.0,0.45540519]
[1756861509240,0.17935611,111510.0,111500.0,0.88914309]
[1756861509450,0.17935611,111510.0,111500.0,0.80861751]
[1756861510088,0.17935611,111510.0,111500.0,0.62938577]
[1756861510307,0.49753867,111510.0,111500.0,0.62938577]
[1756861510530,0.18145611,111510.0,111500.0,0.62938577]
[1756861511177,0.17935611,111510.0,111500.0,0.62938577]
[1756861511401,0.18035611,111510.0,111500.0,0.63538577]
[1756861511846,0.001,111510.0,111500.0,0.81475796]
[1756861512059,0.001,111510.0,111500.0,1.13084052]
[1756861513010,0.001,111510.0,111500.0,1.44692308]
[1756861513226,0.001,111510.0,111500.0,1.13084052]
[1756861517077,0.17935611,111510.0,111500.0,0.86164052]
[1756861517276,0.18145611,111510.0,111500.0,0.68226833]
[1756861517496,0.18145611,111510.0,111500.0,0.67319833]
[1756861517704,0.18145611,111510.0,111500.0,0.31766616]
[1756861517938,0.18145611,111510.0,111500.0,0.32278616]
[1756861518186,0.18145611,111510.0,111500.0,0.17134616]
[1756861518407,0.50063867,111510.0,111500.0,0.21474045]
[1756861518833,0.50163867,111510.0,111500.0,0.07030045]
[1756861519058,0.86257749,111510.0,111500.0,0.22178045]
[1756861520269,0.95449348,111510.0,111500.0,0.00714045]
[1756861520507,1.42205604,111510.0,111500.0,0.00714045]
[1756861520714,1.44533188,111510.0,111500.0,0.00014045]
[1756861521125,1.44633188,111510.0,111500.0,0.00514045]
[1756861521626,1.42205604,111510.0,111500.0,0.00514045]
[1756861523810,1.42205604,111510.0,111500.0,0.27334045]
[1756861524445,1.42205604,111510.0,111500.0,0.00514045]
[1756861524728,0.2003271,111490.0,111470.0,0.2682]
[1756861524970,0.81848501,111480.0,111470.0,0.41976681]
[1756861525165,0.81676949,111480.0,111470.0,0.41976681]
[1756861525600,0.60671428,111480.0,111470.0,0.41976681]
[1756861527101,0.6276531,111480.0,111470.0,0.15156681]
[1756861527840,0.9676531,111480.0,111470.0,0.15156681]
[1756861528347,0.9686531,111480.0,111470.0,0.15456681]
[1756861528977,0.54654319,111480.0,111470.0,0.15456681]
[1756861529210,0.9686531,111480.0,111470.0,0.15456681]
[1756861530553,1.482679,111480.0,111470.0,0.00304681]
[1756861531204,1.06056909,111480.0,111470.0,0.00304681]
[1756861531414,1.482679,111480.0,111470.0,0.00304681]
[1756861531623,1.06056909,111480.0,111470.0,0.00304681]
[1756861533588,0.63845918,111480.0,111470.0,0.00304681]
[1756861533800,0.78985918,111480.0,111470.0,0.00304681]
[1756861534005,1.23894364,111480.0,111470.0,0.00304681]
[1756861535375,1.08754364,111480.0,111470.0,0.00304681]
[1756861535568,1.21196909,111480.0,111470.0,0.00304681]
[1756861536644,1.634079,111480.0,111470.0,0.00304681]
[1756861536868,1.634079,111480.0,111470.0,1e-08]
[1756861537303,1.70355577,111480.0,111470.0,1e-08]
[1756861537727,0.17945266,111450.0,111440.0,0.215]
[1756861537957,0.60327809,111450.0,111440.0,0.06713849]
[1756861538150,0.60156257,111450.0,111440.0,0.06927849]
[1756861538374,0.60366257,111450.0,111440.0,0.06927849]
[1756861538821,0.60366257,111450.0,111440.0,0.06620849]
[1756861539032,0.60366257,111450.0,111440.0,0.06940849]
[1756861539899,0.18155266,111450.0,111440.0,0.06940849]
[1756861540114,0.60466257,111450.0,111440.0,0.07040849]
[1756861540243,0.60256257,111450.0,111440.0,0.07040849]
[1756861541042,0.18045266,111450.0,111440.0,0.07040849]
[1756861541198,0.60427809,111450.0,111440.0,0.07040849]
[1756861541397,0.60256257,111450.0,111440.0,0.07040849]
[1756861543788,0.60466257,111450.0,111440.0,0.06720849]
[1756861544618,0.60466257,111450.0,111440.0,0.07040849]
[1756861546808,0.18255266,111450.0,111440.0,0.07040849]
[1756861547026,0.18045266,111450.0,111440.0,0.07040849]
[1756861547257,0.18216818,111450.0,111440.0,0.07040849]
[1756861547483,0.18216818,111450.0,111440.0,0.33860849]
[1756861548771,0.60427809,111450.0,111440.0,0.33860849]
[1756861548983,0.60256257,111450.0,111440.0,0.33860849]
[1756861549761,0.18045266,111450.0,111440.0,0.33860849]
[1756861549970,0.60427809,111450.0,111440.0,0.33860849]
[1756861550201,0.18045266,111450.0,111440.0,0.33860849]
[1756861550382,0.18045266,111450.0,111440.0,0.36292849]
[1756861550691,0.18216818,111450.0,111440.0,0.36292849]
[1756861550915,0.18216818,111450.0,111440.0,0.51432849]
[1756861551761,0.18045266,111450.0,111440.0,0.51432849]
[1756861552416,0.18216818,111450.0,111440.0,0.51432849]
[1756861552654,0.18426818,111450.0,111440.0,0.49000849]
[1756861552861,0.18255266,111450.0,111440.0,0.49000849]
[1756861553315,0.60466257,111450.0,111440.0,0.49000849]
[1756861553738,0.60256257,111450.0,111440.0,0.49000849]
[1756861554133,0.18045266,111450.0,111440.0,0.49000849]
[1756861554375,0.18216818,111450.0,111440.0,0.49000849]
[1756861558175,0.60951809,111450.0,111440.0,0.33326849]
[1756861558389,0.96874139,111450.0,111440.0,0.27006849]
[1756861558599,1.06692846,111450.0,111440.0,0.27006849]
[1756861559247,0.64481855,111450.0,111440.0,0.27006849]
[1756861559472,1.06692846,111450.0,111440.0,0.27006849]
[1756861560420,1.06692846,111450.0,111440.0,0.42146849]
[1756861560862,1.21832846,111450.0,111440.0,0.42146849]
[1756861562568,1.23760561,111450.0,111440.0,0.42146849]
[1756861562795,1.23760561,111450.0,111440.0,0.27006849]
[1756861563457,1.23760746,111450.0,111440.0,0.27006849]
[1756861564363,1.21832846,111450.0,111440.0,0.27006849]
[1756861565255,0.64167855,111450.0,111440.0,0.27532849]
[1756861565478,1.06378846,111450.0,111440.0,0.27212849]
[1756861565696,1.06692846,111450.0,111440.0,0.27006849]
[1756861566348,0.63540747,111450.0,111440.0,0.27532849]
[1756861566554,1.05751738,111450.0,111440.0,0.27212849]
[1756861566974,1.06065738,111450.0,111440.0,0.27212849]
[1756861567202,1.06693889,111450.0,111440.0,0.27212849]
[1756861567413,1.05751738,111450.0,111440.0,0.27212849]
[1756861568122,1.05751738,111450.0,111440.0,0.27532849]
[1756861569039,0.52045266,111450.0,111440.0,0.27532849]
[1756861573276,0.18045266,111450.0,111440.0,0.27532849]
[1756861574353,0.18045266,111450.0,111440.0,0.45479726]
[1756861575008,0.18045266,111450.0,111440.0,0.47975726]
[1756861575219,0.001,111450.0,111440.0,0.90186717]
[1756861575651,0.18045266,111450.0,111440.0,0.47975726]
[1756861576351,0.18045266,111450.0,111440.0,0.30028849]
[1756861576577,0.18045266,111450.0,111440.0,0.47975726]
[1756861577081,0.18045266,111450.0,111440.0,0.92415726]
[1756861578567,0.001,111450.0,111440.0,0.92415726]
[1756861579302,0.18045266,111450.0,111440.0,0.92415726]
[1756861583558,0.18045266,111450.0,111440.0,0.98739726]
[1756861583992,0.18045266,111450.0,111440.0,0.80792849]
[1756861585128,0.18045266,111450.0,111440.0,0.98739726]
[1756861586588,0.18045266,111450.0,111440.0,0.80792849]
[1756861587572,0.18045266,111450.0,111440.0,0.98739726]
[1756861588388,0.18005266,111450.0,111440.0,0.80792849]
[1756861588748,0.18005266,111450.0,111440.0,0.78296849]
[1756861589528,0.18206266,111450.0,111440.0,0.78296849]
[1756861589876,0.18005266,111450.0,111440.0,0.78296849]
[1756861590305,0.18005266,111450.0,111440.0,0.96243726]
[1756861591054,0.18005266,111450.0,111440.0,0.93416849]
[1756861591399,0.18206266,111450.0,111440.0,0.77976849]
[1756861591625,0.50192311,111450.0,111440.0,0.77770849]
[1756861591838,0.83953238,111450.0,111440.0,0.92902849]
[1756861592068,0.83953238,111450.0,111440.0,0.86578849]
[1756861592296,0.52286193,111450.0,111440.0,0.86578849]
[1756861593902,0.20619148,111450.0,111440.0,0.86578849]
[1756861594128,0.52286193,111450.0,111440.0,0.86578849]
[1756861594931,0.50192311,111450.0,111440.0,0.86578849]
[1756861595139,0.49873311,111450.0,111440.0,0.42353849]
[1756861596181,0.49873311,111450.0,111440.0,0.42673849]
[1756861597335,0.49873311,111450.0,111440.0,0.42353849]
[1756861597754,0.18206266,111450.0,111440.0,0.42353849]
[1756861602301,0.18531266,111450.0,111440.0,0.42138849]
[1756861604007,0.18206266,111450.0,111440.0,0.42354849]
[1756861606662,0.50198311,111450.0,111440.0,0.42126849]
[1756861606874,0.50198311,111450.0,111440.0,0.42130849]
[1756861608831,0.52292193,111450.0,111440.0,0.27006849]
[1756861609050,0.52292193,111450.0,111440.0,0.42130849]
[1756861611273,0.95483792,111450.0,111440.0,0.27006849]
[1756861611480,0.95483792,111450.0,111440.0,0.42122849]
[1756861611736,0.98181737,111450.0,111440.0,0.42122849]
[1756861614218,0.98181737,111450.0,111440.0,0.27006849]
[1756861614400,0.98181737,111450.0,111440.0,0.42118849]
[1756861615147,0.66514692,111450.0,111440.0,0.42118849]
[1756861615394,0.98181737,111450.0,111440.0,0.42118849]
[1756861615582,0.98121737,111450.0,111440.0,0.42018849]
[1756861615918,0.98221737,111450.0,111440.0,0.42118849]
[1756861616631,0.98221737,111450.0,111440.0,0.27006849]
[1756861617036,1.29888782,111450.0,111440.0,0.27006849]
[1756861617270,1.32316365,111450.0,111440.0,0.27006849]
[1756861617483,1.0064932,111450.0,111440.0,0.27006849]
[1756861617718,0.98221737,111450.0,111440.0,0.27006849]
[1756861618731,1.29888782,111450.0,111440.0,0.27006849]
[1756861619173,0.66554692,111450.0,111440.0,0.27006849]
[1756861619553,1.32316365,111450.0,111440.0,0.00186849]
[1756861619771,0.98221737,111450.0,111440.0,0.00186849]
[1756861619968,0.66554692,111450.0,111440.0,0.00186849]
[1756861620183,1.29888782,111450.0,111440.0,0.00186849]
[1756861621019,1.29788782,111450.0,111440.0,0.00086849]
[1756861621248,1.38980381,111450.0,111440.0,0.00086849]
[1756861621478,1.36312782,111450.0,111440.0,0.00186849]
[1756861621941,1.36112782,111450.0,111440.0,0.00086849]
[1756861622166,1.36112782,111450.0,111440.0,0.00186849]
[1756861622385,1.36412782,111450.0,111440.0,0.00186849]
[1756861625445,1.51652782,111450.0,111440.0,0.00186849]
[1756861625869,1.60720748,111450.0,111440.0,0.00186849]
[1756861626079,1.45480748,111450.0,111440.0,0.00186849]
[1756861626291,1.51648782,111450.0,111440.0,0.00186849]
[1756861627581,0.88314692,111450.0,111440.0,0.00186849]
[1756861627798,1.51648782,111450.0,111440.0,0.00186849]
[1756861628233,1.54076365,111450.0,111440.0,0.00186849]
[1756861628456,2.02183179,111450.0,111440.0,1e-08]
[1756861629428,0.17948487,111430.0,111420.0,0.0004]
[1756861629641,1.4197161,111430.0,111420.0,1e-08]
[1756861629861,1.75377285,111430.0,111420.0,1e-08]
[1756861630084,0.17950098,111420.0,111410.0,1e-08]
[1756861630307,1.79816714,111420.0,111410.0,1e-08]
[1756861630572,1.80020714,111420.0,111410.0,1e-08]
[1756861630797,1.80339714,111420.0,111410.0,1e-08]
[1756861631236,1.48668669,111420.0,111410.0,1e-08]
[1756861631664,1.49579153,111420.0,111410.0,1e-08]
[1756861631879,0.85926063,111420.0,111410.0,0.00202001]
[1756861632091,1.49579153,111420.0,111410.0,1e-08]
[1756861632532,1.49879153,111420.0,111410.0,0.00100001]
[1756861633385,1.49579153,111420.0,111410.0,1e-08]
[1756861635228,1.49679153,111420.0,111410.0,0.00100001]
[1756861635454,0.95536662,111420.0,111410.0,0.00100001]
[1756861635669,1.81346198,111420.0,111410.0,0.00100001]
[1756861636117,1.49679153,111420.0,111410.0,0.00100001]
[1756861636583,1.81346198,111420.0,111410.0,0.00100001]
[1756861637052,1.83773781,111420.0,111410.0,0.00100001]
[1756861638351,1.52106736,111420.0,111410.0,0.00100001]
[1756861638573,1.61374335,111420.0,111410.0,0.00100001]
[1756861638787,1.52182736,111420.0,111410.0,0.00100001]
[1756861639153,0.88848646,111420.0,111410.0,0.00100001]
[1756861639356,1.52182736,111420.0,111410.0,0.00100001]
[1756861639813,1.52454254,111420.0,111410.0,0.00100001]
[1756861640734,0.89120164,111420.0,111410.0,0.00302001]
[1756861641044,1.52454254,111420.0,111410.0,0.00100001]
[1756861645660,0.89120164,111420.0,111410.0,0.00100001]
[1756861645902,1.52454254,111420.0,111410.0,0.00100001]
[1756861646720,1.84121299,111420.0,111410.0,0.00100001]
[1756861646928,1.52454254,111420.0,111410.0,0.00100001]
[1756861647242,0.89120164,111420.0,111410.0,0.00100001]
[1756861647472,1.52454254,111420.0,111410.0,0.00100001]
[1756861647695,1.52454254,111420.0,111410.0,1e-08]
[1756861647696,1.31392585,111420.0,111410.0,1e-08]
[1756861648366,1.32018158,111420.0,111410.0,1e-08]
[1756861649297,1.33940356,111420.0,111410.0,1e-08]
[1756861650659,1.38530063,111420.0,111410.0,1e-08]
[1756861650867,1.33940356,111420.0,111410.0,1e-08]
[1756861652601,1.3394073,111420.0,111410.0,1e-08]
[1756861653467,1.35610188,111420.0,111410.0,1e-08]
[1756861656734,0.93339411,111420.0,111410.0,1e-08]
[1756861656936,1.35611832,111420.0,111410.0,1e-08]
[1756861658859,1.35627832,111420.0,111410.0,1e-08]
[1756861659303,1.38034867,111420.0,111410.0,1e-08]
[1756861661400,1.38045407,111420.0,111410.0,1e-08]
[1756861661845,1.22703321,111420.0,111410.0,1e-08]
[1756861662079,1.22697321,111420.0,111410.0,1e-08]
[1756861662313,1.38029321,111420.0,111410.0,1e-08]
[1756861662548,1.37716321,111420.0,111410.0,0.00203001]
[1756861662754,1.22384321,111420.0,111410.0,0.00203001]
[1756861662983,1.37716321,111420.0,111410.0,0.00203001]
[1756861663650,1.42086361,111420.0,111410.0,1e-08]
[1756861663871,1.41773361,111420.0,111410.0,0.00203001]
[1756861664505,1.42086361,111420.0,111410.0,1e-08]
[1756861665470,0.93032915,111420.0,111410.0,0.00203001]
[1756861665692,1.35618336,111420.0,111410.0,1e-08]
[1756861665913,1.42705074,111420.0,111410.0,1e-08]
[1756861668144,1.47705074,111420.0,111410.0,1e-08]
[1756861668363,1.56896673,111420.0,111410.0,1e-08]
[1756861668591,1.99169094,111420.0,111410.0,1e-08]
[1756861669050,1.14624252,111420.0,111410.0,1e-08]
[1756861669264,1.99169094,111420.0,111410.0,1e-08]
[1756861669717,1.56896673,111420.0,111410.0,1e-08]
[1756861672802,1.56912673,111420.0,111410.0,1e-08]
[1756861673215,0.99292252,111420.0,111410.0,1e-08]
[1756861673417,1.56916673,111420.0,111410.0,1e-08]
[1756861675297,1.54505688,111420.0,111410.0,1e-08]
[1756861675483,1.96778109,111420.0,111410.0,1e-08]
[1756861678012,0.17951709,111410.0,111400.0,0.00165092]
[1756861678184,1.74429971,111410.0,111400.0,0.00165092]
[1756861678396,1.77194002,111410.0,111400.0,0.00165092]
[1756861678830,1.798935,111410.0,111400.0,0.00165092]
[1756861679253,1.798935,111410.0,111400.0,0.00169161]
[1756861679475,1.798935,111410.0,111390.0,0.00316]
[1756861679699,1.29307196,111400.0,111390.0,0.00322057]
[1756861679971,1.65563227,111400.0,111390.0,6.057e-05]
[1756861680195,1.68457847,111400.0,111390.0,0.00209057]
[1756861680412,1.71019017,111400.0,111390.0,6.057e-05]
[1756861680664,1.70706017,111400.0,111390.0,0.00209057]
[1756861680878,1.72633753,111400.0,111390.0,0.00525057]
[1756861681314,1.72633753,111400.0,111390.0,0.00209057]
[1756861681490,1.70806017,111400.0,111390.0,0.00509057]
[1756861682522,1.71119017,111400.0,111390.0,0.00306057]
[1756861682732,1.70806017,111400.0,111390.0,0.00509057]
[1756861684418,1.71119017,111400.0,111390.0,0.00509057]
[1756861684616,1.74880286,111400.0,111390.0,0.00509057]
[1756861684902,1.81208286,111400.0,111390.0,0.00509057]
[1756861685110,1.81521286,111400.0,111390.0,0.00509057]
[1756861685756,1.81208286,111400.0,111390.0,0.00509057]
[1756861686114,1.81208286,111400.0,111390.0,0.00825057]
[1756861686725,1.81208286,111400.0,111390.0,0.00509057]
[1756861686945,1.81521286,111400.0,111390.0,0.00509057]
[1756861687276,1.90712885,111400.0,111390.0,0.00306057]
[1756861687542,1.81521286,111400.0,111390.0,0.00306057]
[1756861688736,0.17954933,111390.0,111380.0,0.27276]
[1756861688958,0.84930505,111390.0,111380.0,0.00552685]
[1756861689175,0.84758953,111390.0,111380.0,0.00552685]
[1756861689392,1.21064835,111390.0,111380.0,0.00240685]
[1756861690661,1.21064835,111390.0,111380.0,0.00552685]
[1756861690879,0.65626414,111390.0,111380.0,0.00552685]
[1756861691106,1.23246835,111390.0,111380.0,0.00552685]
[1756861691927,1.23346835,111390.0,111380.0,0.00652685]
[1756861692128,1.23246835,111390.0,111380.0,0.00552685]
[1756861692606,1.23646835,111390.0,111380.0,0.00552685]
[1756861693780,1.08298835,111390.0,111380.0,0.00552685]
[1756861694001,1.23642835,111390.0,111380.0,0.00552685]
[1756861695096,0.81370414,111390.0,111380.0,0.00552685]
[1756861695282,1.23642835,111390.0,111380.0,0.00552685]
[1756861695946,1.23854835,111390.0,111380.0,0.00552685]
[1756861697004,1.08298835,111390.0,111380.0,0.00552685]
[1756861697210,1.23634835,111390.0,111380.0,0.00552685]
[1756861699180,1.24166835,111390.0,111380.0,0.00044685]
[1756861699500,1.24166835,111390.0,111370.0,0.00048]
[1756861699501,0.54050427,111380.0,111370.0,0.00048]
[1756861699685,1.20842447,111380.0,111370.0,0.00052684]
[1756861699896,1.21374447,111380.0,111370.0,0.00052684]
[1756861700107,1.24074546,111380.0,111370.0,0.00052684]
[1756861700344,1.26502129,111380.0,111370.0,0.00052684]
[1756861700792,0.17958157,111370.0,111360.0,0.27272]
[1756861701009,1.21543611,111370.0,111360.0,0.26972626]
[1756861701231,1.23799642,111370.0,111360.0,0.26972626]
[1756861701447,1.32827899,111370.0,111360.0,0.26972626]
[1756861702254,1.32827899,111370.0,111360.0,0.00052626]
[1756861702467,1.15076316,111370.0,111360.0,0.00052626]
[1756861702760,1.14644316,111370.0,111360.0,0.00560626]
[1756861703010,1.30076316,111370.0,111360.0,0.00560626]
[1756861703247,1.30076316,111370.0,111360.0,0.00248626]